bitfinex/quotes_ETHUSD_20250324
["timestamp","ask_amount","ask_price","bid_price","bid_amount"]
[1742808806044,4.78468,2090.0,2089.9,0.44809175]
[1742808806781,0.7738,2090.3,2089.9,8.38125093]
[1742808806955,4.78419,2090.3,2089.9,17.76102093]
[1742808807156,4.78419,2090.3,2089.9,12.97617093]
[1742808807372,9.56836,2090.3,2089.9,12.97617093]
[1742808807555,4.78425,2090.2,2089.9,12.52807918]
[1742808807776,4.78425,2090.2,2089.9,7.74330918]
[1742808808088,4.78425,2090.2,2089.9,4.595]
[1742808808661,4.78456,2090.1,2090.0,0.44686804]
[1742808808862,4.78425,2090.2,2090.0,0.44686804]
[1742808809985,9.56864,2090.2,2090.1,0.44686804]
[1742808811087,4.78425,2090.2,2090.1,0.44686804]
[1742808812486,7.78425,2090.2,2090.1,0.44686804]
[1742808815088,4.78425,2090.2,2090.1,0.44686804]
[1742808815390,7.78425,2090.2,2090.1,0.44686804]
[1742808820304,4.78362,2090.5,2090.1,5.43856804]
[1742808820475,4.78332,2090.6,2090.2,5.3279968]
[1742808820806,4.78332,2090.6,2090.2,5.3279868]
[1742808821409,4.78355,2090.5,2090.3,0.44686804]
[1742808822110,9.5668,2090.6,2090.4,0.44686804]
[1742808823123,4.78354,2090.5,2090.4,0.44686804]
[1742808823417,4.78354,2090.5,2090.2,4.78413]
[1742808824387,9.5668,2090.6,2090.3,0.44745719]
[1742808824583,10.06748699,2091.0,2090.6,4.7832]
[1742808824788,7.78271,2090.9,2090.5,4.78343]
[1742808824983,4.78271,2090.9,2090.5,4.78343]
[1742808825287,7.78271,2090.9,2090.5,4.78343]
[1742808825488,7.78271,2090.9,2090.6,0.44726608]
[1742808826011,4.78285,2090.8,2090.6,0.44726608]
[1742808826517,4.78285,2090.8,2090.7,0.44726608]
[1742808833418,13.9517227,2090.9,2090.7,0.44726608]
[1742808833923,4.78285,2090.8,2090.7,0.44726608]
[1742808835559,3.0,2090.9,2090.7,9.82326608]
[1742808835825,3.0,2091.0,2090.7,10.80566269]
[1742808836419,7.78242,2091.0,2090.8,0.44726608]
[1742808836725,8.57667,2091.1,2090.8,0.44726608]
[1742808837397,8.57667,2091.1,2090.9,0.44726608]
[1742808838227,7.7824,2091.0,2090.9,0.44726608]
[1742808838429,3.0,2091.2,2090.9,0.44726608]
[1742808838617,5.28501699,2091.3,2091.1,4.78204]
[1742808838927,5.28501699,2091.3,2091.1,4.593]
[1742808838928,4.78188,2091.3,2091.1,4.593]
[1742808840030,3.0,2091.5,2091.3,4.78161]
[1742808840332,3.0,2091.4,2091.1,14.15709]
[1742808840533,4.78131,2091.5,2091.2,4.78188]
[1742808840695,7.78131,2091.5,2091.2,4.78188]
[1742808841538,7.78131,2091.5,2091.3,0.44655303]
[1742808841697,10.86356699,2091.8,2091.3,0.65395303]
[1742808841918,3.0,2091.7,2091.4,4.78133]
[1742808842664,3.0,2091.7,2091.4,6.24957833]
[1742808842832,4.78046,2091.9,2091.6,0.2074]
[1742808843080,4.78058,2091.8,2091.5,9.37318]
[1742808843454,4.78058,2091.8,2091.5,9.81973303]
[1742808843648,3.0,2091.8,2091.5,11.40276186]
[1742808844764,3.0,2091.8,2091.5,16.18388186]
[1742808845123,6.08001699,2092.1,2091.7,4.78063]
[1742808845364,10.85991699,2092.1,2091.7,4.78063]
[1742808845533,10.06491699,2092.1,2091.8,4.78054]
[1742808845744,4.7799,2092.1,2091.8,4.78054]
[1742808847370,4.7799,2092.1,2091.7,4.78076]
[1742808847526,4.7799,2092.1,2091.6,0.65395303]
[1742808847859,4.77967,2092.2,2091.6,0.44655303]
[1742808847860,3.8291,2091.7,2091.6,0.44655303]
[1742808848078,8.6099,2091.7,2091.6,0.44655303]
[1742808848761,13.94274649,2091.7,2091.6,0.44655303]
[1742808848953,8.55628,2091.4,2091.3,4.591]
[1742808849862,8.55628,2091.4,2090.9,4.59]
[1742808849863,4.78218,2091.1,2090.9,4.59]
[1742808850333,3.0,2091.3,2090.9,4.59]
[1742808850531,7.78136,2091.5,2091.0,4.9898]
[1742808850747,4.78148,2091.4,2091.0,10.71040678]
[1742808851136,4.78148,2091.4,2091.1,4.78215]
[1742808852072,7.78136,2091.5,2091.1,9.56417]
[1742808852282,3.0,2091.6,2091.3,4.78171]
[1742808852465,3.0,2091.6,2091.3,9.37171]
[1742808852637,7.78106,2091.6,2091.3,4.59]
[1742808853037,5.54477,2091.5,2091.2,0.44554987]
[1742808853346,4.78156,2091.4,2091.2,5.03554987]
[1742808853671,4.78171,2091.3,2091.2,5.03554987]
[1742808854184,4.78171,2091.3,2091.2,4.59]
[1742808854783,5.8622165,2091.3,2091.1,0.44554987]
[1742808854944,4.78194,2091.2,2091.1,0.44554987]
[1742808855146,7.78194,2091.2,2091.1,0.44554987]
[1742808855539,4.78217,2091.1,2091.0,5.52834678]
[1742808855784,7.78194,2091.2,2091.0,5.52834678]
[1742808855937,3.0,2091.2,2091.1,4.78217]
[1742808856666,3.0,2091.2,2091.1,5.22771987]
[1742808856841,4.78149,2091.4,2091.1,5.22771987]
[1742808857467,4.78149,2091.4,2091.1,0.44554987]
[1742808857982,4.78149,2091.4,2091.2,0.44554987]
[1742808858569,9.56317,2091.4,2091.2,0.44554987]
[1742808858769,9.56317,2091.4,2091.1,0.44554987]
[1742808858965,4.78174,2091.3,2091.1,0.44554987]
[1742808859774,7.78154,2091.4,2091.0,10.31057678]
[1742808859947,7.78154,2091.4,2091.1,4.78208]
[1742808860365,7.78154,2091.4,2091.0,11.43380706]
[1742808861987,7.78154,2091.4,2091.1,0.44611986]
[1742808862794,7.78154,2091.4,2091.2,0.44611986]
[1742808863752,7.78154,2091.4,2091.0,11.02407278]
[1742808864702,4.7818,2091.3,2091.0,6.24177278]
[1742808864882,4.7818,2091.3,2091.1,0.44632941]
[1742808866059,0.7828,2091.2,2091.1,0.44632941]
[1742808866262,5.56474,2091.2,2091.1,0.44632941]
[1742808866462,5.56474,2091.2,2091.0,1.65177278]
[1742808867594,5.56474,2091.2,2091.0,0.93834678]
[1742808867983,4.78217,2091.1,2091.0,0.93834678]
[1742808868184,7.78217,2091.1,2091.0,0.93834678]
[1742808869162,12.56452,2091.1,2090.8,5.303426]
[1742808869362,4.78244,2091.0,2090.8,5.303426]
[1742808870394,4.78244,2091.0,2090.8,0.713426]
[1742808870395,4.78262,2090.9,2090.8,0.713426]
[1742808870962,4.78262,2090.9,2090.7,26.431]
[1742808871598,9.56547,2090.9,2090.7,26.431]
[1742808871895,4.78262,2090.9,2090.7,26.431]
[1742808873711,4.78262,2090.9,2090.6,4.59]
[1742808874004,4.78316,2090.7,2090.4,4.59]
[1742808874664,4.78285,2090.8,2090.4,9.37368]
[1742808874866,5.53894,2090.9,2090.5,4.78344]
[1742808875491,4.78298,2090.8,2090.4,10.0886847]
[1742808875693,4.78298,2090.8,2090.4,14.24019217]
[1742808875915,9.56599,2090.8,2090.4,14.24019217]
[1742808876479,4.78309,2090.7,2090.4,14.24019217]
[1742808877267,4.78309,2090.7,2090.4,9.45645217]
[1742808877472,4.78309,2090.7,2090.4,5.3049447]
[1742808877697,4.78309,2090.7,2090.4,10.0886647]
[1742808878907,4.78309,2090.7,2090.5,0.7149447]
[1742808880931,4.78309,2090.7,2090.4,10.0886647]
[1742808881226,4.78309,2090.7,2090.4,5.3049447]
[1742808882292,5.56854,2090.5,2090.4,0.7149447]
[1742808882692,8.56854,2090.5,2090.4,0.7149447]
[1742808883213,7.78423,2090.2,2090.1,0.93862711]
[1742808883413,8.55513,2090.2,2090.1,0.93862711]
[1742808883808,8.6029595,2090.2,2090.1,0.93862711]
[1742808884001,8.55513,2090.2,2090.1,0.93862711]
[1742808884796,10.367431,2090.2,2090.1,0.93862711]
[1742808884991,4.785,2089.9,2089.7,0.7149447]
[1742808885197,4.785,2089.9,2089.7,5.3049447]
[1742808885400,4.78477,2090.0,2089.7,5.3049447]
[1742808886322,4.78477,2090.0,2089.7,4.59]
[1742808886826,9.56963,2090.0,2089.7,4.59]
[1742808887123,10.86821799,2090.2,2089.6,26.438]
[1742808887324,4.78522,2089.8,2089.6,31.029]
[1742808889295,5.58539,2089.9,2089.6,31.029]
[1742808890132,10.37048,2089.9,2089.6,31.029]
[1742808890333,4.78515,2089.8,2089.6,31.029]
[1742808891620,4.78515,2089.8,2089.7,0.97435921]
[1742808894499,5.822176,2089.8,2089.7,0.97435921]
[1742808894696,8.822176,2089.8,2089.7,0.97435921]
[1742808894900,7.78515,2089.8,2089.7,0.97435921]
[1742808908447,3.0,2089.8,2089.7,0.97435921]
[1742808910260,3.0,2089.9,2089.8,9.57028]
[1742808910465,5.28501699,2090.0,2089.8,9.57028]
[1742808910629,8.28501699,2090.0,2089.9,4.591]
[1742808911841,13.06969699,2090.0,2089.9,4.591]
[1742808912763,8.28501699,2090.0,2089.9,4.591]
[1742808913267,13.06969699,2090.0,2089.9,4.591]
[1742808913844,7.78468,2090.0,2089.9,4.591]
[1742808914543,3.0,2090.0,2089.9,4.591]
[1742808915064,7.78468,2090.0,2089.9,4.591]
[1742808919690,3.0,2090.0,2089.9,4.591]
[1742808929090,7.78468,2090.0,2089.9,4.591]
[1742808930492,3.0,2090.0,2089.9,4.591]
[1742808931712,3.0,2090.0,2089.9,4.88801756]
[1742808931988,9.3664645,2090.0,2089.9,0.29701756]
[1742808932291,4.78559,2089.7,2089.5,26.45]
[1742808932794,4.7856,2089.6,2089.5,26.45]
[1742808933972,4.7856,2089.6,2089.5,27.40587635]
[1742808935198,4.7856,2089.6,2089.5,27.69093116]
[1742808937373,9.57113,2089.7,2089.5,27.69093116]
[1742808938680,4.7856,2089.6,2089.5,27.69093116]
[1742808939204,4.7856,2089.6,2089.5,1.24093116]
[1742808941389,9.57107,2089.7,2089.5,1.24093116]
[1742808941592,9.57108,2089.7,2089.5,1.24093116]
[1742808941997,3.0,2089.9,2089.5,2.35040489]
[1742808942203,5.28501699,2090.1,2089.5,2.35040489]
[1742808942204,5.28501699,2090.1,2089.5,1.44833116]
[1742808942411,10.06948699,2090.1,2089.8,4.78501]
[1742808942708,4.78471,2090.0,2089.9,0.28545374]
[1742808943113,10.06948699,2090.1,2089.9,0.28545374]
[1742808943416,4.78447,2090.1,2089.9,0.28545374]
[1742808946522,4.78447,2090.1,2089.9,1.25629681]
[1742808953316,4.78423,2090.2,2089.9,1.25629681]
[1742808953487,4.78404,2090.3,2089.9,1.25629681]
[1742808953488,0.7569,2090.7,2090.5,4.78341]
[1742808953687,0.7569,2090.9,2090.6,4.78324]
[1742808953898,0.7569,2090.9,2090.6,0.28456438]
[1742808953899,3.0,2090.7,2090.6,0.28456438]
[1742808954299,7.78308,2090.7,2090.4,9.37176]
[1742808954501,7.78308,2090.7,2090.6,0.28308004]
[1742808954831,7.78308,2090.7,2090.4,9.37176]
[1742808955131,7.78308,2090.7,2090.6,0.28308004]
[1742808955302,7.78308,2090.7,2090.4,9.37169]
[1742808955507,7.78308,2090.7,2090.6,0.28308004]
[1742808955826,7.78308,2090.7,2090.4,9.37169]
[1742808956023,7.78308,2090.7,2090.6,0.28308004]
[1742808956192,5.53954,2090.9,2090.5,0.2830834]
[1742808956393,9.56606,2090.8,2090.6,0.28308004]
[1742808956795,9.56606,2090.8,2090.4,9.37169]
[1742808957107,9.56606,2090.8,2090.4,10.807978]
[1742808957108,4.783,2090.8,2090.4,10.807978]
[1742808957307,4.783,2090.8,2090.5,0.2830834]
[1742808957520,4.78316,2090.7,2090.5,0.2830834]
[1742808958526,7.78291,2090.8,2090.5,0.2830834]
[1742808959520,4.78309,2090.7,2090.5,0.2830834]
[1742808960232,5.56821,2090.6,2090.5,4.8700834]
[1742808961643,8.56821,2090.6,2090.5,4.8700834]
[1742808962935,3.0,2090.6,2090.5,9.6536234]
[1742808963099,4.7829,2090.8,2090.5,5.0774834]
[1742808963299,7.7827,2090.9,2090.5,9.8609934]
[1742808963635,12.56549,2090.9,2090.5,11.32550574]
[1742808963821,9.56591,2090.8,2090.5,4.8700834]
[1742808964014,4.78288,2090.8,2090.5,4.8700834]
[1742808965034,4.78316,2090.7,2090.5,4.8700834]
[1742808965617,4.78294,2090.8,2090.5,4.8700834]
[1742808967947,7.78269,2090.9,2090.5,4.8700834]
[1742808968246,7.78269,2090.9,2090.5,9.8609334]
[1742808968542,12.56552,2090.9,2090.5,9.8609334]
[1742808968745,7.78269,2090.9,2090.5,9.8609334]
[1742808969444,4.78295,2090.8,2090.5,9.8609334]
[1742808969651,7.78269,2090.9,2090.5,14.6443534]
[1742808969853,4.78286,2090.8,2090.5,4.8700834]
[1742808972444,9.114252,2090.9,2090.5,9.6535134]
[1742808972618,7.78271,2090.9,2090.5,9.6535134]
[1742808973349,7.78271,2090.9,2090.6,4.78326]
[1742808973549,3.0,2090.9,2090.7,4.78306]
[1742808973754,3.0,2090.9,2090.7,5.06283931]
[1742808973955,3.0,2091.0,2090.7,9.84582931]
[1742808974144,3.0,2091.0,2090.7,5.06276931]
[1742808974520,7.78243,2091.0,2090.7,5.06276931]
[1742808975353,6.03751699,2091.2,2091.1,4.78217]
[1742808975519,0.7706,2091.4,2091.1,4.78204]
[1742808975719,3.0,2091.3,2091.1,0.27832363]
[1742808975914,7.78175,2091.3,2091.1,0.27832363]
[1742808976351,9.56367,2091.3,2091.1,0.27832363]
[1742808976617,4.78194,2091.2,2091.1,0.27832363]
[1742808978352,6.571069,2091.2,2091.1,0.27832363]
[1742808978563,4.78262,2090.9,2090.8,4.584]
[1742808978853,4.78262,2090.9,2090.7,4.584]
[1742808979022,4.7824,2091.0,2090.7,6.142478]
[1742808979742,7.78225,2091.1,2090.7,6.142478]
[1742808979942,7.78225,2091.1,2090.8,0.2783337]
[1742808980229,7.78225,2091.1,2090.7,10.925458]
[1742808980432,7.78225,2091.1,2090.9,0.27833034]
[1742808980783,7.78168,2091.4,2091.0,5.06064698]
[1742808980938,12.56336,2091.4,2091.0,5.06064698]
[1742808981128,12.56332,2091.4,2091.0,5.06064698]
[1742808981657,4.78164,2091.4,2091.0,6.06569868]
[1742808981957,9.56377,2091.3,2091.1,4.584]
[1742808982162,4.78186,2091.3,2091.1,4.86232363]
[1742808982658,9.56377,2091.3,2091.1,4.86232363]
[1742808983825,4.78186,2091.3,2091.1,4.86232363]
[1742808984050,9.56374,2091.3,2091.1,4.86232363]
[1742808985254,4.78194,2091.2,2091.1,4.86232363]
[1742808985453,5.57554,2091.2,2091.1,4.86232363]
[1742808987283,6.61128,2091.2,2091.1,0.27832363]
[1742808987655,4.7824,2091.0,2090.9,4.584]
[1742808988989,4.78219,2091.1,2090.9,4.584]
[1742808989284,9.56453,2091.1,2090.9,4.7914]
[1742808989587,4.7824,2091.0,2090.9,4.7914]
[1742808989886,4.7824,2091.0,2090.9,4.584]
[1742808990275,1.032929,2091.0,2090.5,6.2174]
[1742808990588,4.78353,2090.6,2090.4,31.019]
[1742808991688,4.78353,2090.6,2090.4,26.436]
[1742808991850,4.78354,2090.5,2090.4,26.436]
[1742808993000,6.06341699,2091.1,2090.8,4.78271]
[1742808993361,3.0,2091.0,2090.8,4.78271]
[1742808993671,3.0,2091.0,2090.7,4.583]
[1742808993672,4.78277,2090.9,2090.7,4.583]
[1742808993877,9.56558,2090.9,2090.7,4.583]
[1742808994078,9.56558,2090.9,2090.7,5.29911258]
[1742808994275,4.78277,2090.9,2090.7,5.29911258]
[1742808994495,9.56559,2090.9,2090.7,5.29911258]
[1742808994859,4.78277,2090.9,2090.7,5.29911258]
[1742808995089,7.78277,2090.9,2090.8,0.26656355]
[1742808995393,7.78277,2090.9,2090.4,34.32162]
[1742808995394,7.78308,2090.7,2090.6,0.71611258]
[1742808995562,8.56158,2090.7,2090.6,0.71611258]
[1742808996493,14.39659699,2090.7,2090.6,0.71611258]
[1742808996664,4.78433,2090.2,2090.0,4.583]
[1742808997097,9.56874,2090.2,2090.0,4.583]
[1742808997395,4.78433,2090.2,2090.0,8.184353]
[1742809001703,4.78446,2090.1,2090.0,4.583]
[1742809001872,4.78468,2090.0,2089.9,0.71598751]
[1742809002188,4.78468,2090.0,2089.8,31.021]
[1742809003681,4.78446,2090.1,2089.8,31.021]
[1742809003881,4.78446,2090.1,2089.8,34.622376]
[1742809005777,9.56911,2090.1,2089.8,34.622376]
[1742809007120,4.78472,2090.0,2089.8,34.622376]
[1742809007279,9.56909,2090.1,2089.8,34.622376]
[1742809007615,4.78446,2090.1,2089.8,34.622376]
[1742809007779,9.56908,2090.1,2089.8,34.622376]
[1742809007982,4.78446,2090.1,2089.8,34.622376]
[1742809008178,4.78477,2090.0,2089.8,34.622376]
[1742809008373,4.78446,2090.1,2089.8,34.622376]
[1742809008601,9.56908,2090.1,2089.8,34.622376]
[1742809008807,4.78475,2090.0,2089.8,34.622376]
[1742809009011,9.56964,2090.0,2089.8,31.021]
[1742809009181,4.78491,2089.9,2089.8,31.021]
[1742809009992,4.78491,2089.9,2089.8,31.26642311]
[1742809010293,4.78479,2090.0,2089.8,31.26642311]
[1742809012004,4.78478,2090.0,2089.8,31.26642311]
[1742809014083,4.78478,2090.0,2089.8,4.82842311]
[1742809019016,10.36565,2090.0,2089.8,4.82842311]
[1742809019216,10.36562,2090.0,2089.8,4.82842311]
[1742809019729,7.78491,2089.9,2089.8,0.24542311]
[1742809020096,8.59067,2089.7,2089.6,0.71428935]
[1742809020324,13.87568699,2089.7,2089.6,0.71428935]
[1742809020724,7.7856,2089.6,2089.5,0.71428935]
[1742809021744,3.0,2089.6,2089.5,0.71428935]
[1742809021897,3.0,2089.6,2089.4,5.96936007]
[1742809022110,5.28501699,2089.7,2089.4,0.2074]
[1742809022447,5.28501699,2089.7,2089.5,9.36864]
[1742809022803,5.28501699,2089.7,2089.5,4.583]
[1742809023007,5.28501699,2089.7,2089.5,6.019259]
[1742809023741,5.28501699,2089.7,2089.5,6.73354835]
[1742809025042,5.28501699,2089.7,2089.6,0.25347733]
[1742809025344,9.57049,2089.8,2089.6,0.96776668]
[1742809025943,4.78518,2089.8,2089.6,0.96776668]
[1742809026133,3.0,2089.9,2089.6,7.42989525]
[1742809026308,3.0,2090.0,2089.7,4.99263]
[1742809026515,0.7892,2090.5,2090.1,4.78443]
[1742809026709,4.78334,2090.6,2090.2,5.283333]
[1742809026910,4.78334,2090.6,2090.2,5.53572199]
[1742809027343,3.0,2090.6,2090.4,4.78369]
[1742809027543,5.61454,2090.9,2090.4,5.8362722]
[1742809027707,7.78295,2090.8,2090.5,0.25155742]
[1742809028043,4.78246,2091.0,2090.5,5.59767832]
[1742809028246,3.0,2091.0,2090.7,4.78307]
[1742809028444,3.0,2091.0,2090.8,0.25154734]
[1742809028650,3.0,2091.0,2090.7,4.78307]
[1742809028852,3.0,2091.0,2090.8,0.25154734]
[1742809029145,5.61414,2091.1,2090.8,0.25154734]
[1742809029146,4.78195,2091.2,2090.8,4.78271]
[1742809029354,4.7822,2091.1,2090.9,4.83554399]
[1742809031018,9.56456,2091.1,2090.9,4.83554399]
[1742809031349,4.7822,2091.1,2090.9,4.83554399]
[1742809032651,0.7534,2091.3,2091.2,4.78194]
[1742809032952,6.03631699,2091.5,2091.2,4.78191]
[1742809033119,10.81758699,2091.5,2091.2,0.22874321]
[1742809033319,5.28501699,2091.5,2091.2,0.22874321]
[1742809033521,5.28501699,2091.5,2091.2,5.01058321]
[1742809033852,3.0,2091.4,2091.2,0.22874321]
[1742809034951,3.0,2091.4,2091.2,5.01064321]
[1742809036265,3.0,2091.4,2091.2,0.22874321]
[1742809038401,3.0,2091.5,2091.2,0.22874321]
[1742809038574,7.7814,2091.5,2091.2,0.22874321]
[1742809038871,4.78151,2091.4,2091.2,0.22874321]
[1742809039248,4.78151,2091.4,2091.0,4.98979]
[1742809039453,4.78151,2091.4,2091.3,0.22873986]
[1742809039668,4.78151,2091.4,2091.1,4.17562564]
[1742809039971,4.78151,2091.4,2091.3,0.22873986]
[1742809040171,4.78151,2091.4,2091.2,0.22874321]
[1742809040329,4.78151,2091.4,2091.3,0.22873986]
[1742809040733,4.78151,2091.4,2091.1,4.17562564]
[1742809040955,4.78151,2091.4,2091.3,0.22355559]
[1742809041160,4.78151,2091.4,2091.2,0.22355895]
[1742809041368,4.78151,2091.4,2091.3,0.22355559]
[1742809041562,4.78151,2091.4,2091.1,4.17562564]
[1742809041836,4.78151,2091.4,2091.2,0.20593185]
[1742809043458,7.78133,2091.5,2091.2,0.20593185]
[1742809043781,12.56275,2091.5,2091.2,0.20593185]
[1742809045480,4.78153,2091.4,2091.2,0.20593185]
[1742809049967,4.78153,2091.4,2091.0,9.77187]
[1742809050174,4.78153,2091.4,2091.1,0.18993214]
[1742809050356,4.78153,2091.4,2091.1,4.97209214]
[1742809051481,4.78153,2091.4,2091.1,0.18993214]
[1742809059091,9.56317,2091.4,2091.1,0.18993214]
[1742809059301,4.78153,2091.4,2091.1,0.18993214]
[1742809059593,9.56318,2091.4,2091.1,0.18993214]
[1742809059786,9.56318,2091.4,2091.1,0.13600761]
[1742809060294,4.78153,2091.4,2091.1,0.13600761]
[1742809060499,9.56319,2091.4,2091.1,0.13600761]
[1742809060796,4.78172,2091.3,2091.1,0.13600761]
[1742809062170,4.78194,2091.2,2091.1,0.13600761]
[1742809062364,4.78234,2091.1,2090.8,26.433]
[1742809062709,9.56468,2091.1,2090.9,4.70390835]
[1742809062866,4.78234,2091.1,2090.9,4.70390835]
[1742809066369,4.78197,2091.2,2090.9,4.70390835]
[1742809066696,9.56406,2091.2,2090.9,4.70390835]
[1742809066902,4.78219,2091.1,2090.9,4.70390835]
[1742809069102,4.7824,2091.0,2090.9,4.66964879]
[1742809069478,4.78224,2091.1,2090.9,4.66964879]
[1742809071009,9.56456,2091.1,2090.9,4.578]
[1742809071186,4.78224,2091.1,2090.9,4.578]
[1742809075385,9.56406,2091.2,2090.9,4.578]
[1742809075915,4.78217,2091.1,2090.9,4.578]
[1742809076714,4.78197,2091.2,2090.9,4.578]
[1742809077513,9.56408,2091.2,2090.9,4.578]
[1742809077878,9.56406,2091.2,2090.9,4.578]
[1742809078103,4.78221,2091.1,2090.9,4.578]
[1742809081512,4.78197,2091.2,2090.9,9.36062]
[1742809081720,5.28501699,2091.4,2091.3,4.78171]
[1742809082593,5.28501699,2091.4,2091.2,4.78186]
[1742809083487,4.78173,2091.3,2090.9,4.78253]
[1742809083686,4.78207,2091.2,2090.8,9.56717]
[1742809084308,4.78173,2091.3,2090.8,9.61495312]
[1742809084621,5.28501699,2091.4,2091.2,4.78187]
[1742809084786,5.28501699,2091.4,2091.2,9.35887]
[1742809085120,5.28501699,2091.4,2091.2,4.577]
[1742809085538,10.06650699,2091.4,2091.2,4.577]
[1742809086022,14.84816699,2091.4,2091.2,4.577]
[1742809086316,10.06650699,2091.4,2091.2,4.577]
[1742809086617,5.56982,2091.2,2091.0,4.577]
[1742809086927,5.56982,2091.2,2091.1,0.98069545]
[1742809092639,4.7825,2091.0,2090.6,4.53855139]
[1742809092843,5.59868,2090.7,2090.6,4.53855139]
[1742809093028,5.59868,2090.7,2090.6,5.50450318]
[1742809093414,7.115106,2090.7,2090.6,5.50450318]
[1742809094043,5.59868,2090.7,2090.6,5.50450318]
[1742809094605,0.8078,2090.9,2090.6,10.28769318]
[1742809094813,8.59059,2090.9,2090.6,5.50450318]
[1742809095127,9.56595,2090.8,2090.6,5.50450318]
[1742809095333,4.78308,2090.7,2090.6,5.50450318]
[1742809096510,5.53948,2090.7,2090.6,5.50450318]
[1742809097319,9.56596,2090.8,2090.6,5.50450318]
[1742809097519,4.78308,2090.7,2090.6,5.50450318]
[1742809099663,5.57778,2090.7,2090.6,5.50450318]
[1742809102348,4.78308,2090.7,2090.6,5.50450318]
[1742809103751,4.78294,2090.8,2090.6,5.50450318]
[1742809104055,9.56595,2090.8,2090.6,5.50450318]
[1742809104268,4.78294,2090.8,2090.6,5.50450318]
[1742809104756,13.34024,2090.9,2090.6,5.50450318]
[1742809105267,4.78266,2090.9,2090.6,7.0324125]
[1742809105562,4.78266,2090.9,2090.6,11.8155825]
[1742809105771,10.06749699,2091.0,2090.6,11.8155825]
[1742809106449,4.78282,2090.9,2090.6,7.0324125]
[1742809106651,4.78282,2090.9,2090.7,1.18159325]
[1742809107755,5.28501699,2091.0,2090.7,5.96455325]
[1742809107960,10.06741699,2091.0,2090.7,6.17195325]
[1742809108350,5.28501699,2091.0,2090.7,6.17195325]
[1742809108662,5.28501699,2091.0,2090.8,5.95042564]
[1742809109028,5.28501699,2091.0,2090.8,1.16764564]
[1742809109357,5.28501699,2091.0,2090.7,9.56646]
[1742809109764,5.28501699,2091.0,2090.7,9.5664]
[1742809110055,5.28501699,2091.0,2090.7,14.34931]
[1742809110262,4.78227,2091.1,2090.7,14.34931]
[1742809110665,4.78227,2091.1,2090.8,4.78284]
[1742809110967,4.78227,2091.1,2090.7,14.34927]
[1742809111163,4.78227,2091.1,2090.7,16.33464732]
[1742809111554,4.78227,2091.1,2090.7,11.55168732]
[1742809111871,4.78227,2091.1,2090.7,16.33463732]
[1742809112637,9.56461,2091.1,2090.7,6.97568732]
[1742809112960,7.78227,2091.1,2091.0,0.97990382]
[1742809117570,0.8006,2091.3,2091.0,2.0137762]
[1742809117769,4.78186,2091.3,2091.0,2.0137762]
[1742809117970,4.78184,2091.3,2091.0,2.0137762]
[1742809118444,7.78164,2091.4,2091.0,2.2211762]
[1742809118650,7.78164,2091.4,2091.1,4.78215]
[1742809119036,7.78164,2091.4,2091.1,5.48248262]
[1742809119243,7.78128,2091.5,2091.2,4.78173]
[1742809120175,7.78128,2091.5,2091.1,5.48242262]
[1742809120375,12.56271,2091.5,2091.1,5.48242262]
[1742809120759,4.78128,2091.5,2091.1,10.26449262]
[1742809120982,4.78128,2091.5,2091.2,1.24856688]
[1742809121166,4.78128,2091.5,2091.2,6.18154695]
[1742809122275,4.78128,2091.5,2091.3,0.35798007]
[1742809123142,4.78105,2091.6,2091.3,0.35798007]
[1742809123343,7.78112,2091.6,2091.2,10.96336695]
[1742809123744,3.8112,2091.7,2091.4,0.95717377]
[1742809124170,6.05871699,2091.9,2091.4,5.73844377]
[1742809124387,4.78057,2091.8,2091.4,0.95717377]
[1742809124568,9.56132,2091.8,2091.4,5.73852377]
[1742809124749,9.56132,2091.8,2091.5,1.27300768]
[1742809124950,4.78057,2091.8,2091.5,1.27300768]
[1742809125254,9.5613,2091.8,2091.5,1.27300768]
[1742809125466,4.7808,2091.7,2091.5,1.27300768]
[1742809125968,9.5613,2091.8,2091.5,1.27300768]
[1742809126355,4.7808,2091.7,2091.5,1.27300768]
[1742809126850,4.78057,2091.8,2091.5,1.27300768]
[1742809126851,4.78064,2091.8,2091.5,1.27300768]
[1742809128072,5.55407,2091.9,2091.5,6.05425768]
[1742809128260,4.78037,2091.9,2091.6,0.81283477]
[1742809129180,4.78037,2091.9,2091.6,5.59374477]
[1742809129382,4.78014,2092.0,2091.7,4.574]
[1742809129684,9.56043,2092.0,2091.7,4.574]
[1742809129896,4.78034,2091.9,2091.7,4.574]
[1742809132685,7.78016,2092.0,2091.7,4.574]
[1742809133180,4.78034,2091.9,2091.7,4.574]
[1742809135284,7.78016,2092.0,2091.7,9.35474]
[1742809135654,7.78016,2092.0,2091.7,4.574]
[1742809136985,7.78016,2092.0,2091.7,9.35478]
[1742809137388,7.78016,2092.0,2091.7,10.84962748]
[1742809137988,7.78016,2092.0,2091.7,6.06884748]
[1742809141684,4.78016,2092.0,2091.7,6.06884748]
[1742809143293,4.78016,2092.0,2091.7,4.574]
[1742809145500,4.78016,2092.0,2091.7,9.35478]
[1742809146502,4.78016,2092.0,2091.7,9.71232289]
[1742809149309,4.78016,2092.0,2091.8,0.35754289]
[1742809149809,1.14082691,2092.4,2091.8,0.35754289]
[1742809149810,5.28501699,2092.5,2091.9,0.2074]
[1742809150029,5.28501699,2092.5,2092.3,4.77934]
[1742809150177,5.28501699,2092.5,2092.2,0.2074]
[1742809150382,10.06398699,2092.5,2092.2,4.98701]
[1742809150611,5.28501699,2092.5,2092.3,4.77941]
[1742809150917,5.58551,2092.8,2092.4,9.55818]
[1742809151084,5.58551,2092.8,2092.4,4.77908]
[1742809151423,4.77831,2092.8,2092.5,4.77889]
[1742809151578,9.55674,2092.8,2092.4,5.277758]
[1742809151778,4.77858,2092.7,2092.4,5.277758]
[1742809152674,4.77831,2092.8,2092.4,10.056798]